lending/lending_fUSD_20250131
["ID","MTS","AMOUNT","RATE_DAILY","PERIOD"]
[351149998,1738357833594,-460.23330766,0.0001726,2]
[351150000,1738357833603,-151.3,0.0001726,2]
[351150002,1738357833613,-983.86,0.0001726,2]
[351150004,1738357833623,-298.42,0.0001726,2]
[351150006,1738357833631,-150.0,0.0001726,2]
[351150008,1738357833640,-150.0,0.0001726,2]
[351150010,1738357833651,-983.86,0.0001726,2]
[351150011,1738357833661,-150.0,0.0001726,2]
[351150013,1738357833670,-983.86,0.0001726,2]
[351150015,1738357833679,-150.0,0.0001726,2]
[351150017,1738357833689,-983.86,0.0001726,2]
[351150019,1738357833698,-983.86,0.0001726,2]
[351150021,1738357833707,-298.42,0.0001726,2]
[351150023,1738357833716,-150.0,0.0001726,2]
[351150025,1738357833725,-983.86,0.0001726,2]
[351150027,1738357833734,-150.0,0.0001726,2]
[351150029,1738357833743,-298.0,0.0001726,2]
[351150031,1738357833752,-983.86,0.0001726,2]
[351150033,1738357833761,-983.86,0.0001726,2]
[351150035,1738357833770,-847.78,0.0001726,2]
[351150037,1738357833780,-150.0,0.0001726,2]
[351150039,1738357833789,-8713.65722157,0.00017318,2]
[351150041,1738357833799,-353.38,0.00017353,2]
[351150043,1738357833808,-150.0,0.00017365,2]
[351150045,1738357833818,-3908.0,0.00017365,2]
[351150047,1738357833827,-469.788,0.00017365,2]
[351150049,1738357833837,-179.01,0.00017392,2]
[351150051,1738357833846,-1250.44555927,0.00017417,2]
[351150053,1738357833856,-1523.25872429,0.00017474,2]
[351150055,1738357833866,-200.0,0.0001748,2]
[351150057,1738357833876,-318.32935924,0.00017481,2]
[351150059,1738357833886,-29848.51449875,0.00017481,2]
[351150061,1738357833897,-40932.34532925,0.00017482,2]
[351150063,1738357833911,-15535.0,0.00017482,2]
[351150065,1738357833923,-6099.9999999,0.00017482,2]
[351150067,1738357833935,-5880.0,0.00017482,2]
[351150069,1738357833947,-1550.0,0.00017482,2]
[351150072,1738357833958,-26807.04201464,0.00017482,2]
[351150075,1738357833978,-5099.5,0.00017482,2]
[351150077,1738357833989,-1000.395,0.00017482,2]
[351150479,1738357837966,-1019.46417,0.000169,2]
[351150499,1738357838151,-829.65534055,0.000169,2]
[351150502,1738357838173,-2.38760923,0.000169,2]
[351150503,1738357838182,-4921.42191142,0.00017318,2]
[351150504,1738357838192,-42811.24302048,0.00017318,2]
[351150505,1738357838204,-832.06991559,0.00017318,2]
[351150506,1738357838214,-329.5347003,0.00017318,2]
[351150507,1738357838225,-3212.85344129,0.00017318,2]
[351150508,1738357838236,-77127.7554045,0.00017318,2]
[351150509,1738357838247,-676.99884865,0.00017318,2]
[351150510,1738357838258,-1544.2169972,0.00017318,2]
[351150511,1738357838268,-2847.37849241,0.00017318,2]
[351150513,1738357838279,-779.80368225,0.00017318,2]
[351150515,1738357838290,-11336.373492,0.00017318,2]
[351150517,1738357838301,-523.65,0.00017318,2]
[351150519,1738357838314,-299.37950016,0.00017318,2]
[351150522,1738357838329,-4359.23156696,0.00017318,2]
[351150524,1738357838340,-1269.99759,0.00017318,2]
[351150526,1738357838351,-2388.6000052,0.00017318,2]
[351150529,1738357838369,-3201.73124796,0.00017318,2]
[351150531,1738357838380,-1711.94088374,0.00017318,2]
[351150533,1738357838391,-11361.55162714,0.00017318,2]
[351150536,1738357838405,-2843.32297337,0.00017318,2]
[351150539,1738357838431,-2580.74602927,0.00017318,2]
[351150720,1738357840093,-986.96348217,0.00017318,2]
[351150723,1738357840105,-3907.79298001,0.00017318,2]
[351150729,1738357840154,-318177.40168418,0.00017318,2]
[351150731,1738357840165,-4971.74782959,0.00017318,2]
[351150737,1738357840209,-4070.58522,0.00017318,2]
[351150739,1738357840221,-326.89500001,0.00017318,2]
[351150745,1738357840266,-26263.18270252,0.00017318,2]
[351150747,1738357840277,-13201.90983459,0.00017318,2]
[351150749,1738357840293,-7901.67657273,0.00017318,2]
[351150751,1738357840303,-12060.47143067,0.00017318,2]
[351150755,1738357840328,-5663.00549854,0.00017318,2]
[351150757,1738357840338,-46058.95748965,0.00017318,2]
[351150769,1738357840451,-319.27062643,0.00017318,2]
[351150771,1738357840463,-1659.99316002,0.00017318,2]
[351151043,1738357843002,-26697.10231366,0.00017318,2]
[351151046,1738357843013,-922.78832998,0.00017318,2]
[351151048,1738357843024,-5338.96326073,0.00017318,2]
[351151050,1738357843035,-383.20020393,0.00017318,2]
[351151054,1738357843060,-40752.11242214,0.00017318,2]
[351151056,1738357843073,-107660.99878101,0.00017318,2]
[351151059,1738357843084,-23022.0292,0.00017318,2]
[351151064,1738357843119,-664.717,0.00017318,2]
[351151067,1738357843131,-5877.6051077,0.00017318,2]
[351151071,1738357843142,-1163.764995,0.00017318,2]
[351151075,1738357843178,-1997.745936,0.00017318,2]
[351151077,1738357843188,-3447.15561898,0.00017318,2]
[351151080,1738357843199,-2523.86000002,0.00017318,2]
[351151082,1738357843211,-105270.17999994,0.00017318,2]
[351151086,1738357843241,-402278.80037793,0.00017318,2]
[351151093,1738357843299,-987.01,0.00017318,2]
[351151356,1738357845994,-877.06,0.00016659,2]
[351151359,1738357846004,-1000.0,0.000173,2]
[351151361,1738357846013,-989.02229076,0.00017318,2]
[351151365,1738357846024,-1208.0,0.00017318,2]
[351151374,1738357846119,-766.199,0.00017318,2]
[351151375,1738357846131,-1201.79819071,0.00017318,2]
[351151376,1738357846142,-261844.61607703,0.00017318,2]
[351151377,1738357846151,-378.79,0.00017318,2]
[351151378,1738357846160,-13477.54061463,0.00017477,2]
[351151379,1738357846169,-298032.11220106,0.00017482,2]
[351151380,1738357846178,-5146.90102253,0.00017484,2]
[351151381,1738357846187,-3810.31444313,0.00017485,2]
[351151382,1738357846197,-10669.60512938,0.00017487,2]
[351151383,1738357846206,-573.27618398,0.00017488,2]
[351151384,1738357846215,-10669.60512938,0.00017498,2]
[351151385,1738357846225,-190.93449806,0.00017499,2]
[351151386,1738357846235,-10669.60512938,0.000175,2]
[351151388,1738357846244,-1284.0,0.000175,2]
[351151389,1738357846253,-13477.54061463,0.000175,2]
[351151391,1738357846262,-1178.56266873,0.00017508,2]
[351151393,1738357846270,-209.371,0.00017509,2]
[351151395,1738357846280,-5249.042,0.00017509,2]
[351151397,1738357846288,-200.0,0.00017511,2]
[351151399,1738357846298,-241.06631966,0.00017512,2]
[351151401,1738357846307,-241.06631966,0.00017512,2]
[351151403,1738357846317,-29848.51449875,0.00017515,2]
[351151405,1738357846326,-29848.51449875,0.00017515,2]
[351151407,1738357846336,-318.32935924,0.00017515,2]
[351151409,1738357846346,-3810.31444313,0.00017518,2]
[351151411,1738357846355,-3000.0,0.00017524,2]
[351151413,1738357846364,-11262.77044095,0.00017524,2]
[351151415,1738357846374,-1218.31969191,0.00017525,2]
[351151417,1738357846383,-10669.60512938,0.00017525,2]
[351151419,1738357846392,-8713.65722157,0.00017527,2]
[351151421,1738357846401,-318.32935924,0.00017529,2]
[351151423,1738357846411,-2500.0,0.0001753,2]
[351151425,1738357846420,-867.9282942,0.0001753,2]
[351151427,1738357846429,-693.88964633,0.0001753,2]
[351151429,1738357846438,-29848.51449875,0.00017531,2]
[351151431,1738357846448,-176.78645944,0.00017532,2]
[351151433,1738357846456,-693.88964633,0.00017532,2]
[351151435,1738357846466,-7975.13447145,0.00017533,2]
[351151437,1738357846475,-15759.90610744,0.00017534,2]
[351151439,1738357846484,-1156.41380439,0.00017535,2]
[351151441,1738357846493,-573.27618398,0.00017536,2]
[351151443,1738357846502,-13477.54061463,0.00017536,2]
[351151445,1738357846512,-1218.31969191,0.00017538,2]
[351151447,1738357846521,-5146.90102253,0.0001754,2]
[351151449,1738357846530,-537.4437852,0.00017541,2]
[351151451,1738357846539,-370.28,0.00017541,2]
[351151453,1738357846549,-371.89,0.00017541,2]
[351151455,1738357846557,-318.32935924,0.00017544,2]
[351151457,1738357846566,-163.36585698,0.00017545,10]
[351151459,1738357846578,-1218.31969191,0.0001755,2]
[351151461,1738357846589,-5146.90102253,0.0001755,2]
[351151463,1738357846598,-278284.58723142,0.00017551,2]
[351151465,1738357846610,-122651.80731343,0.00017551,2]
[351151467,1738357846619,-200.0,0.00017555,2]
[351151469,1738357846628,-6173.97552766,0.00017558,2]
[351151471,1738357846637,-6173.97552766,0.0001756,2]
[351151473,1738357846646,-7975.13447145,0.00017569,2]
[351151475,1738357846655,-3810.31444313,0.0001757,2]
[351151477,1738357846668,-13477.54061463,0.0001757,2]
[351151479,1738357846676,-500.0,0.00017573,2]
[351151481,1738357846685,-1156.41380439,0.00017573,2]
[351151483,1738357846694,-573.27618398,0.00017575,2]
[351151485,1738357846703,-5146.90102253,0.00017576,2]
[351151487,1738357846713,-1156.41380439,0.00017581,2]
[351151489,1738357846721,-693.88964633,0.00017583,2]
[351151491,1738357846731,-241.06631966,0.00017584,2]
[351151492,1738357846740,-200.0,0.00017585,2]
[351151495,1738357846750,-336.08955649,0.00017586,2]
[351151499,1738357846777,-335.30570427,0.00017586,2]
[351151519,1738357846960,-361.55571279,0.00017586,2]
[351151521,1738357846972,-5094.0,0.00017586,2]
[351151523,1738357846984,-47.02455411,0.00017586,2]
[351151525,1738357846993,-200.0,0.00017587,2]
[351151528,1738357847004,-17454.48085429,0.00017589,2]
[351151530,1738357847015,-692.17038355,0.00017589,2]
[351151800,1738358861360,1675.22761498,0.0001,2]
[351151847,1738359032217,-419.333715,0.000108,2]
[351151849,1738359032227,-3962.56049595,0.00011688,2]
[351151851,1738359032239,-628.9464439,0.00011688,2]
[351151869,1738359032395,-2251.62010032,0.00011688,2]
[351151871,1738359032404,-550.0,0.00013,2]
[351151873,1738359032414,-184.46,0.00013699,2]
[351151875,1738359032422,-842.57,0.00014307,2]
[351151877,1738359032431,-600.0,0.00015,2]
[351151879,1738359032440,-150.0,0.00015068,2]
[351151881,1738359032449,-500.0,0.00015104,2]
[351151883,1738359032460,-300.0,0.00015136,2]
[351151885,1738359032470,-1204.0,0.00015137,2]
[351151887,1738359032480,-200.0,0.00015164,2]
[351151889,1738359032489,-1717.19,0.0001517,2]
[351151891,1738359032498,-1560.12,0.00015188,2]
[351151893,1738359032507,-200.0,0.00015236,2]
[351151895,1738359032516,-1500.0,0.00015254,2]
[351151897,1738359032525,-575.85,0.00015289,2]
[351151898,1738359032534,-152.49,0.00015933,2]
[351151899,1738359032543,-152.49,0.00015939,2]
[351151900,1738359032552,-152.49,0.00015946,2]
[351151901,1738359032559,-152.49,0.00015952,2]
[351151903,1738359032569,-169.18,0.00015954,2]
[351151905,1738359032578,-152.49,0.00015959,2]
[351151908,1738359032587,-152.49,0.00015966,2]
[351151911,1738359032596,-152.49,0.00015972,2]
[351151912,1738359032605,-152.49,0.00015979,2]
[351151915,1738359032614,-152.49,0.00015986,2]
[351151918,1738359032623,-761.62936215,0.0001599,2]
[351151921,1738359032632,-152.49,0.00015992,2]
[351151924,1738359032642,-152.49,0.00015999,2]
[351151927,1738359032651,-152.49,0.00016005,2]
[351151930,1738359032660,-152.49,0.00016012,2]
[351151933,1738359032670,-371.88,0.00016038,2]
[351151936,1738359032679,-761.62936215,0.00016076,2]
[351151939,1738359032689,-23900.0,0.0001609,2]
[351151942,1738359032698,-250.0,0.00016099,2]
[351151944,1738359032709,-727.05,0.00016099,2]
[351151947,1738359032719,-247.37,0.00016112,2]
[351151950,1738359032728,-150.0,0.00016133,2]
[351151953,1738359032738,-61916.92,0.00016176,2]
[351151956,1738359032747,-161.88,0.00016243,2]
[351151959,1738359032758,-1000.0,0.00016243,2]
[351151962,1738359032767,-500.0,0.00016268,2]
[351151965,1738359032777,-211.8,0.00016345,2]
[351151968,1738359032788,-300.0,0.00016558,2]
[351151971,1738359032798,-420.0,0.00016563,2]
[351151974,1738359032808,-842.57,0.0001657,2]
[351151977,1738359032818,-173.33,0.00016617,2]
[351151980,1738359032828,-380.03,0.00016628,2]
[351151983,1738359032838,-1000.0,0.00016637,2]
[351151986,1738359032847,-226.1657,0.00016637,2]
[351151989,1738359032857,-157.03,0.00016658,30]
[351151992,1738359032867,-462.53,0.00016681,2]
[351151995,1738359032877,-381.94,0.00016737,2]
[351151998,1738359032887,-150.0,0.00016737,2]
[351152001,1738359032897,-374.52,0.00016737,2]
[351152004,1738359032906,-376.88,0.00016737,2]
[351152007,1738359032916,-372.22,0.00016737,2]
[351152010,1738359032929,-372.31,0.00016737,2]
[351152013,1738359032940,-381.51,0.00016737,2]
[351152016,1738359032949,-374.25,0.00016737,2]
[351152019,1738359032960,-102019.91190367,0.00016737,2]
[351152022,1738359032971,-5228.19433296,0.000168,2]
[351152025,1738359032981,-1090.78048544,0.000169,2]
[351152028,1738359032990,-247.37,0.00016918,2]
[351152031,1738359033000,-800.0,0.00016922,2]
[351152034,1738359033010,-500.0,0.00016922,2]
[351152037,1738359033020,-439.05,0.00016986,2]
[351152040,1738359033029,-774.29,0.00016986,2]
[351152043,1738359033039,-774.29,0.00016986,2]
[351152046,1738359033049,-774.29,0.00016986,2]
[351152048,1738359033059,-774.29,0.00016986,2]
[351152051,1738359033068,-774.29,0.00016986,2]
[351152054,1738359033078,-650.0,0.00017,2]
[351152056,1738359033088,-5228.19433294,0.0001702,2]
[351152060,1738359033099,-300.24,0.00017052,2]
[351152062,1738359033109,-1090.78048527,0.00017072,2]
[351152064,1738359033118,-371.89,0.00017137,2]
[351152066,1738359033128,-150.0,0.00017184,2]
[351152068,1738359033137,-323.02,0.00017184,2]
[351152070,1738359033147,-300.0,0.00017207,2]
[351152072,1738359033157,-5228.19433294,0.0001724,2]
[351152074,1738359033168,-268.7218926,0.00017243,2]
[351152076,1738359033178,-1090.78048527,0.00017245,2]
[351152078,1738359033188,-264.8711,0.00017309,2]
[351152080,1738359033198,-379.96,0.00017314,2]
[351152082,1738359033210,-1090.78048527,0.00017417,2]
[351152084,1738359033220,-5228.19433294,0.0001746,2]
[351152086,1738359033230,-431.18147599,0.00017461,2]
[351152088,1738359033240,-4077.01484101,0.00017481,2]
[351152090,1738359033250,-3810.31444313,0.00017481,2]
[351152092,1738359033260,-2564.47801127,0.00017486,2]
[351152094,1738359033270,-2564.47801127,0.00017488,2]
[351152096,1738359033279,-3810.31444313,0.00017496,2]
[351152098,1738359033289,-3486.20088298,0.00017496,2]
[351152100,1738359033299,-10475.67491392,0.00017498,2]
[351152102,1738359033308,-5310.75913689,0.000175,2]
[351152104,1738359033318,-3810.31444313,0.00017504,2]
[351152106,1738359033327,-4077.01484101,0.00017505,2]
[351152108,1738359033337,-10475.67491392,0.00017507,2]
[351152110,1738359033347,-1032.3608,0.00017507,2]
[351152112,1738359033356,-167.497,0.00017511,2]
[351152113,1738359033366,-4358.025,0.00017511,2]
[351152114,1738359033376,-3486.20088298,0.00017512,2]
[351152115,1738359033386,-3486.20088298,0.00017515,2]
[351152116,1738359033395,-528.62094719,0.00017517,2]
[351152117,1738359033405,-3486.20088298,0.00017523,2]
[351152118,1738359033415,-17592.93045722,0.00017528,2]
[351152137,1738359033680,-40308.78015293,0.00017528,2]
[351152139,1738359033691,-3388.022,0.00017532,2]
[351152141,1738359033700,-9234.5111,0.00017532,2]
[351152143,1738359033714,-5000.0,0.00017532,2]
[351152145,1738359033723,-10475.67491392,0.00017538,2]
[351152147,1738359033733,-528.62094719,0.0001754,2]
[351152148,1738359033743,-528.62094719,0.00017545,2]
[351152150,1738359033752,-2564.47801127,0.00017559,2]
[351152152,1738359033762,-10475.67491392,0.0001756,2]
[351152154,1738359033772,-19265.61701359,0.0001756,2]
[351152156,1738359033784,-251.46137945,0.0001756,2]
[351152159,1738359033800,-803.1051707,0.0001756,2]
[351152186,1738359038220,-378.65518926,0.0001756,2]
[351152187,1738359038326,-501.44330965,0.0001756,2]
[351152188,1738359038397,-529.90619621,0.0001756,2]
[351152191,1738359040221,-4000.0,0.0001756,2]
[351152192,1738359040284,-32171.52235129,0.0001756,2]
[351152193,1738359040293,-765.37848998,0.00017566,2]
[351152194,1738359040305,-3044.93595315,0.00017566,2]
[351152195,1738359040314,-1315.39888591,0.00017571,2]
[351152196,1738359040323,-687.20370435,0.0001758,2]
[351152197,1738359040460,-500.0,0.0001758,2]
[351152198,1738359040472,-332.36000002,0.0001758,2]
[351152199,1738359040483,-484.92249999,0.0001758,2]
[351152200,1738359040525,-559.99180691,0.0001758,2]
[351152201,1738359040535,-57901.71061015,0.00017582,2]
[351152202,1738359040544,-528.62094719,0.00017585,2]
[351152203,1738359040553,-20192.3440606,0.00017588,2]
[351152204,1738359040563,-77605.09009907,0.00017589,2]
[351152205,1738359040574,-104265.86797392,0.00017589,2]
[351152206,1738359040600,-19190.71785291,0.00017589,2]
[351152249,1738359043243,-469.384415,0.00017589,2]
[351152252,1738359043333,-181258.68296611,0.00017589,2]
[351152253,1738359043343,-241.06631966,0.00017589,2]
[351152254,1738359043352,-2000.0,0.00017589,2]
[351152255,1738359043361,-200.0,0.00017589,2]
[351152256,1738359043370,-3000.0,0.00017589,2]
[351152257,1738359043379,-372.67,0.0001759,2]
[351152258,1738359043389,-1090.78048527,0.0001759,2]
[351152259,1738359043399,-200.0,0.00017591,2]
[351152260,1738359043408,-5640.3270742,0.00017593,2]
[351152261,1738359043418,-57901.71061015,0.00017594,2]
[351152262,1738359043428,-4077.01484101,0.00017594,2]
[351152263,1738359043438,-13023.97361492,0.00017595,2]
[351152264,1738359043447,-573.27618398,0.00017596,2]
[351152265,1738359043456,-1156.41380439,0.00017598,2]
[351152266,1738359043467,-1218.31969191,0.00017598,2]
[351152267,1738359043476,-400936.39454485,0.00017598,2]
[351152268,1738359043485,-693.88964633,0.00017599,2]
[351152269,1738359043494,-4077.01484101,0.00017599,2]
[351152270,1738359043502,-7975.13447145,0.00017599,2]
[351152271,1738359043511,-3810.31444313,0.000176,2]
[351152272,1738359043520,-500.0,0.00017605,2]
[351152273,1738359043529,-284.46907117,0.0001763,2]
[351152274,1738359043538,-405395.49331667,0.00017631,2]
[351152275,1738359043547,-298.42,0.00017671,2]
[351152276,1738359043556,-150.0,0.00017671,2]
[351152278,1738359043565,-438.33,0.00017671,2]
[351152279,1738359043575,-1966.92,0.00017671,2]
[351152281,1738359043591,-150.0,0.00017671,2]
[351152283,1738359043601,-150.0,0.00017671,2]
[351152285,1738359043611,-298.42,0.00017671,2]
[351152287,1738359043620,-150.0,0.00017671,2]
[351152288,1738359043630,-1966.92,0.00017671,2]
[351152289,1738359043639,-438.33,0.00017671,2]
[351152290,1738359043648,-150.0,0.00017671,2]
[351152291,1738359043657,-298.42,0.00017671,2]
[351152292,1738359043667,-150.0,0.00017671,2]
[351152293,1738359043677,-438.33,0.00017671,2]
[351152294,1738359043686,-437.85,0.00017671,2]
[351152295,1738359043695,-298.42,0.00017671,2]
[351152297,1738359043704,-150.0,0.00017671,2]
[351152298,1738359043713,-150.0,0.00017671,2]
[351152300,1738359043722,-5228.19433294,0.0001768,2]
[351152302,1738359043732,-6360.65171111,0.000177,2]
[351152304,1738359043741,-2269.58,0.000177,2]
[351152305,1738359043750,-1315.39888589,0.00017705,2]
[351152306,1738359043760,-247.37,0.00017724,2]
[351152307,1738359043769,-500.25716364,0.00017728,2]
[351152308,1738359043778,-500.0,0.00017755,2]
[351152309,1738359043787,-1090.78048527,0.00017762,2]
[351152310,1738359043797,-221.0,0.00017788,2]
[351152311,1738359043806,-997.2562,0.00017799,2]
[351152312,1738359043815,-5068.67341833,0.000178,2]
[351152313,1738359043824,-162.20903324,0.000178,2]
[351152314,1738359043833,-1204.48946969,0.000178,2]
[351152315,1738359043842,-176.84316534,0.000178,2]
[351152316,1738359043852,-700.0,0.000178,6]
[351152317,1738359043860,-1000.0,0.0001781,2]
[351152318,1738359043870,-1000.0,0.0001781,2]
[351152319,1738359043879,-1000.0,0.0001781,2]
[351152320,1738359043887,-1000.0,0.0001781,2]
[351152321,1738359043896,-1000.0,0.0001781,2]
[351152322,1738359043905,-557.7639,0.0001781,2]
[351152323,1738359043915,-1315.39888589,0.0001784,2]
[351152324,1738359043926,-14381.0,0.00017863,2]
[351152325,1738359043936,-2021.09,0.0001789,2]
[351152326,1738359043945,-190.93449807,0.0001789,2]
[351152327,1738359043956,-2000.0,0.00017899,2]
[351152328,1738359043964,-1000.0,0.00017899,2]
[351152329,1738359043974,-900.0,0.00017899,2]
[351152330,1738359043983,-900.0,0.00017899,2]
[351152331,1738359043992,-900.0,0.00017899,2]
[351152332,1738359044002,-900.0,0.00017899,2]
[351152333,1738359044011,-900.0,0.00017899,2]
[351152334,1738359044020,-900.0,0.00017899,2]
[351152335,1738359044029,-900.0,0.00017899,2]
[351152336,1738359044038,-900.0,0.00017899,2]
[351152337,1738359044047,-900.0,0.00017899,2]
[351152338,1738359044056,-900.0,0.00017899,2]
[351152339,1738359044065,-2923.0,0.000179,2]
[351152340,1738359044074,-231140.53332372,0.000179,2]
[351152344,1738359046111,-874.090001,0.000179,2]
[351152345,1738359046129,-406.4214,0.000179,2]
[351152346,1738359046141,-427.88,0.000179,2]
[351152347,1738359046183,-588.57861,0.000179,2]
[351152348,1738359046247,-38070.10294831,0.000179,2]
[351152349,1738359046321,-769.686283,0.000179,2]
[351152350,1738359046332,-2039.48499,0.000179,2]
[351152351,1738359046387,-1567.7,0.000179,2]
[351152352,1738359046459,-134815.90847197,0.000179,2]
[351152353,1738359046470,-940.0,0.000179,2]
[351152354,1738359046479,-1500.0,0.000179,6]
[351152355,1738359046488,-5228.19433294,0.000179,2]
[351152356,1738359046497,-273.0,0.000179,2]
[351152357,1738359046507,-151.0,0.000179,2]
[351152358,1738359046516,-151.0,0.000179,2]
[351152359,1738359046525,-151.0,0.000179,2]
[351152360,1738359046535,-151.0,0.000179,2]
[351152361,1738359046545,-151.0,0.000179,2]
[351152362,1738359046554,-151.0,0.000179,2]
[351152363,1738359046564,-151.0,0.000179,2]
[351152364,1738359046573,-151.0,0.000179,2]
[351152366,1738359046582,-151.0,0.000179,2]
[351152367,1738359046591,-151.0,0.000179,2]
[351152368,1738359046600,-151.0,0.000179,2]
[351152369,1738359046610,-151.0,0.000179,2]
[351152370,1738359046619,-151.0,0.000179,2]
[351152371,1738359046629,-151.0,0.000179,2]
[351152372,1738359046638,-151.0,0.000179,2]
[351152374,1738359046647,-151.0,0.000179,2]
[351152376,1738359046657,-151.0,0.000179,2]
[351152377,1738359046666,-151.0,0.000179,2]
[351152378,1738359046676,-5068.46211049,0.00017904,2]
[351152379,1738359046685,-330.06157726,0.00017918,2]
[351152380,1738359046695,-300.0,0.00017928,2]
[351152381,1738359046704,-1090.78048527,0.00017934,2]
[351152382,1738359046714,-1315.39888589,0.00017974,2]
[351152383,1738359046724,-490.99,0.00017976,2]
[351152384,1738359046734,-5349.38119639,0.00018,5]
[351152385,1738359046744,-44482.53138827,0.00018,10]
[351152386,1738359046753,-1407.0,0.00018,2]
[351152387,1738359046763,-469.0,0.00018,2]
[351152388,1738359046773,-330.06157726,0.00018,2]
[351152389,1738359046782,-594.82,0.00018,2]
[351152390,1738359046791,-150.0,0.00018,2]
[351152391,1738359046801,-1537.08,0.00018,2]
[351152392,1738359046811,-800.0,0.00018018,2]
[351152393,1738359046820,-167.78,0.00018029,2]
[351152394,1738359046830,-179.02,0.00018036,2]
[351152395,1738359046839,-176.84316533,0.0001805,2]
[351152396,1738359046849,-153.593778,0.00018065,2]
[351152397,1738359046858,-150.0,0.00018065,2]
[351152398,1738359046867,-330.06157726,0.00018082,2]
[351152399,1738359046876,-371.71,0.00018082,2]
[351152400,1738359046885,-1428.82993993,0.000181,2]
[351152401,1738359046895,-151.0,0.00018104,2]
[351152402,1738359046904,-1090.78048527,0.00018107,2]
[351152403,1738359046915,-1315.39888589,0.00018108,2]
[351152404,1738359046927,-5228.19433294,0.0001812,2]
[351152405,1738359046936,-1867.0,0.00018124,2]
[351152406,1738359046946,-897.485,0.00018124,2]
[351152407,1738359046955,-2952.0,0.00018124,2]
[351152408,1738359046966,-782.0,0.00018124,2]
[351152409,1738359046975,-538.0,0.00018124,2]
[351152410,1738359046984,-1323.0,0.00018124,2]
[351152411,1738359046995,-150.0,0.00018124,2]
[351152412,1738359047005,-1270.0,0.00018124,2]
[351152413,1738359047013,-2021.0,0.00018124,2]
[351152414,1738359047023,-3700.736,0.00018124,2]
[351152415,1738359047031,-639.0,0.00018124,2]
[351152416,1738359047041,-587.0,0.00018125,2]
[351152417,1738359047050,-330.06157726,0.00018164,2]
[351152418,1738359047059,-720.34599,0.000182,2]
[351152419,1738359047068,-1315.39888589,0.00018243,2]
[351152420,1738359047078,-330.06157726,0.00018247,2]
[351152421,1738359047088,-1000.0,0.00018273,2]
[351152422,1738359047097,-1090.78048527,0.00018279,2]
[351152423,1738359047107,-171.85,0.00018299,2]
[351152424,1738359047116,-162.20903324,0.000183,2]
[351152425,1738359047126,-176.84316533,0.000183,2]
[351152426,1738359047135,-5228.19433294,0.0001834,2]
[351152427,1738359047145,-330.06157726,0.00018356,2]
[351152428,1738359047154,-202.0,0.0001836,2]
[351152429,1738359047164,-1315.39888589,0.00018377,2]
[351152430,1738359047173,-1204.48946969,0.00018378,2]
[351152431,1738359047183,-211.8,0.00018388,2]
[351152432,1738359047193,-2300.0,0.000184,6]
[351152433,1738359047202,-150.0,0.00018411,2]
[351152434,1738359047212,-330.06157726,0.00018438,2]
[351152435,1738359047222,-1090.78048527,0.00018452,2]
[351152436,1738359047232,-150.0,0.00018493,2]
[351152437,1738359047242,-150.0,0.00018493,2]
[351152438,1738359047252,-150.0,0.00018493,2]
[351152439,1738359047261,-150.0,0.00018493,2]
[351152440,1738359047271,-150.0,0.00018493,2]
[351152441,1738359047280,-150.0,0.00018493,2]
[351152442,1738359047290,-190.79,0.00018493,2]
[351152443,1738359047299,-1000.0,0.000185,2]
[351152444,1738359047308,-1000.0,0.000185,2]
[351152445,1738359047317,-1000.0,0.000185,2]
[351152446,1738359047327,-1000.0,0.000185,3]
[351152447,1738359047338,-1000.0,0.000185,3]
[351152448,1738359047348,-1000.0,0.000185,2]
[351152449,1738359047358,-1000.0,0.000185,2]
[351152450,1738359047367,-1000.0,0.000185,2]
[351152451,1738359047377,-3100.0,0.000185,6]